[Event "WYCC 2018 G16"]
[Site "Halkidiki"]
[Date "2018.10.27"]
[Round "8"]
[White "Tejasvi M"]
[Black "Hercog, Nusa"]
[Result "0-1"]
[ECO "A01"]
[WhiteElo "1869"]
[BlackElo "2017"]
[Annotator "NA"]
[PlyCount "60"]
[EventDate "2018.10.20"]
[EventType "swiss"]
[EventCountry "GRE"]
[SourceTitle "playchess.com"]
[Source "ChessBase"]
[SourceQuality "1"]
[TimeControl "40/5400+30:1800+30"]

1. b3 {[%emt 0:00:16]} d5 {[%emt 0:00:00]} 2. e3 {[%emt 0:00:08]} Nf6 {[%emt 0:02:09]} 3. Bb2 {[%emt 0:00:08]} e6 {[%emt 0:00:19]} 4. f4 {[%emt 0:00:11]} c5 {[%emt 0:01:02]} 5. Nf3 {[%emt 0:01:01]} Nc6 {[%emt 0:01:48]} 6. Be2 {[%emt 0:00:39]} Be7 {[%emt 0:01:19]} 7. O-O {[%emt 0:00:18]} O-O {[%emt 0:00:21]} 8. Ne5 {[%emt 0:01:35]} Qc7 {[%emt 0:01:09]} 9. Rf3 {[%emt 0:18:07]} Nd7 {[%emt 0:14:54]} 10. d4 {[%emt 0:12:37]} f6 {[%emt 0:07:11]} 11. Nxc6 {[%emt 0:08:48]} Qxc6 {[%emt 0:01:02]} 12. Bd3 {[%emt 0:07:40]} f5 {[%emt 0:08:42]} 13. Nd2 {[%emt 0:05:10]} Nf6 {[%emt 0:05:32]} 14. a4 {[%emt 0:07:17]} b6 {[%emt 0:07:19]} 15. Rh3 {[%emt 0:03:42]} Bb7 {[%emt 0:04:51]} 16. Nf3 {[%emt 0:02:19]} Ng4 {[%emt 0:06:10]} 17. Ne5 {[%emt 0:01:58]} Nxe5 {[%emt 0:00:07]} 18. fxe5 {[%emt 0:00:46]} c4 {[%emt 0:04:35]} 19. Bf1 {[%emt 0:14:38]} g6 {[%emt 0:01:23]} 20. Ba3 {[%emt 0:04:36]} Bxa3 {[%emt 0:00:52]} 21. Rxa3 {[%emt 0:00:01]} cxb3 {[%emt 0:00:51]} 22. cxb3 {[%emt 0:00:08]} f4 {[%emt 0:06:09]} 23. exf4 {[%emt 0:05:27]} Rxf4 {[%emt 0:00:05]} 24. b4 {[%emt 0:01:20]} Raf8 {[%emt 0:02:08]} 25. Bb5 {[%emt 0:00:12]} Rxd4 {[%emt 0:04:05]} 26. Qa1 {[%emt 0:01:43]} Qc2 27. Bd3 {[%emt 0:01:02]} Rxd3 {[%emt 0:02:00]} 28. Raxd3 {[%emt 0:00:52]} Qf2+ {[%emt 0:00:04]} 29. Kh1 {[%emt 0:00:04]} Qf1+ {[%emt 0:00:04]} 30. Qxf1 {[%emt 0:00:04]} Rxf1# {[%emt 0:00:02]} 0-1

[Event "WYCC 2018 G16"]
[Site "Halkidiki"]
[Date "2018.10.27"]
[Round "8"]
[White "Kvendseth, Thyra"]
[Black "Schulze, Lara"]
[Result "0-1"]
[ECO "A61"]
[WhiteElo "1854"]
[BlackElo "2122"]
[Annotator "NA"]
[PlyCount "148"]
[EventDate "2018.10.20"]
[EventType "swiss"]
[EventCountry "GRE"]
[SourceTitle "playchess.com"]
[Source "ChessBase"]
[SourceQuality "1"]
[TimeControl "40/5400+30:1800+30"]

1. d4 {[%emt 0:00:00]} Nf6 {[%emt 0:00:00]} 2. Nf3 {[%emt 0:00:00]} e6 {[%emt 0:00:00]} 3. c4 {[%emt 0:00:59]} c5 {[%emt 0:00:03]} 4. d5 {[%emt 0:05:16]} exd5 {[%emt 0:00:04]} 5. cxd5 {[%emt 0:00:04]} d6 {[%emt 0:00:12]} 6. Nc3 {[%emt 0:00:27]} g6 {[%emt 0:00:07]} 7. e4 {[%emt 0:03:57]} a6 {[%emt 0:00:48]} 8. a4 {[%emt 0:04:20]} Bg4 {[%emt 0:00:26]} 9. Bd3 {[%emt 0:07:24]} Bg7 {[%emt 0:03:38]} 10. h3 {[%emt 0:01:59]} Bxf3 {[%emt 0:00:17]} 11. Qxf3 {[%emt 0:00:19]} O-O {[%emt 0:00:55]} 12. O-O {[%emt 0:00:43]} Nbd7 {[%emt 0:00:50]} 13. Qg3 {[%emt 0:04:18]} Ne5 {[%emt 0:11:44]} 14. Be2 {[%emt 0:14:03]} Re8 {[%emt 0:15:13]} 15. f4 {[%emt 0:09:55]} Ned7 {[%emt 0:00:53]} 16. Bf3 {[%emt 0:01:43]} c4 {[%emt 0:05:49]} 17. Be3 {[%emt 0:09:21]} b5 {[%emt 0:14:17]} 18. axb5 {[%emt 0:09:42]} axb5 {[%emt 0:00:07]} 19. Rxa8 {[%emt 0:01:22]} Qxa8 {[%emt 0:00:04]} 20. Nxb5 {[%emt 0:04:36]} Qb8 {[%emt 0:14:20]} 21. Nxd6 {[%emt 0:05:00]} Qxd6 {[%emt 0:00:08]} 22. e5 {[%emt 0:00:04]} Qb4 {[%emt 0:06:05]} 23. exf6 {[%emt 0:01:05]} Bxf6 {[%emt 0:00:27]} 24. Bg4 {[%emt 0:00:54]} Qxb2 {[%emt 0:04:01]} 25. Kh1 {[%emt 0:04:11]} Qb3 {[%emt 0:08:59]} 26. Bf2 {[%emt 0:03:54]} Qxg3 {[%emt 0:00:28]} 27. Bxg3 {[%emt 0:00:02]} Nc5 {[%emt 0:00:33]} 28. f5 {[%emt 0:01:30]} Ne4 {[%emt 0:01:48]} 29. Bc7 {[%emt 0:00:57]} Rc8 {[%emt 0:07:17]} 30. Bh2 {[%emt 0:01:25]} g5 {[%emt 0:00:19]} 31. Rc1 {[%emt 0:02:49]} c3 {[%emt 0:01:29]} 32. Bf3 {[%emt 0:02:41]} Nf2+ {[%emt 0:01:36]} 33. Kg1 {[%emt 0:00:04]} Nd3 {[%emt 0:00:20]} 34. Rc2 {[%emt 0:00:49]} Ra8 {[%emt 0:01:11]} 35. Kf1 {[%emt 0:00:33]} Nb4 {[%emt 0:01:58]} 36. Rc1 {[%emt 0:00:51]} Nd3 {[%emt 0:00:41]} 37. Rc2 {[%emt 0:00:09]} Nb4 {[%emt 0:00:25]} 38. Rc1 {[%emt 0:00:18]} Ra2 {[%emt 0:00:19]} 39. Be4 {[%emt 0:00:57]} c2 {[%emt 0:00:47]} 40. Ke2 {[%emt 0:00:00]} Bb2 {[%emt 0:00:00]} 41. d6 {[%emt 0:07:26]} Kf8 {[%emt 0:11:41]} 42. Rxc2 {[%emt 0:08:06]} Nxc2 {[%emt 0:00:09]} 43. Bxc2 {[%emt 0:00:27]} Bd4 {[%emt 0:08:50]} 44. Kd3 {[%emt 0:02:07]} Bc5 {[%emt 0:02:14]} 45. f6 {[%emt 0:02:16]} Ke8 {[%emt 0:01:36]} 46. Bd1 {[%emt 0:03:20]} Ra6 {[%emt 0:03:04]} 47. Ke4 {[%emt 0:02:57]} Bxd6 {[%emt 0:01:31]} 48. Bxd6 {[%emt 0:00:20]} Rxd6 {[%emt 0:00:02]} 49. Ba4+ {[%emt 0:00:08]} Kf8 {[%emt 0:01:13]} 50. Ke5 {[%emt 0:01:16]} Ra6 {[%emt 0:01:06]} 51. Bc2 {[%emt 0:00:58]} Ra5+ {[%emt 0:00:42]} 52. Kd6 {[%emt 0:02:57]} h6 {[%emt 0:01:19]} 53. Be4 {[%emt 0:00:22]} Ra2 {[%emt 0:01:26]} 54. Bf3 {[%emt 0:00:30]} Ke8 {[%emt 0:00:56]} 55. Bc6+ {[%emt 0:00:27]} Kd8 {[%emt 0:00:39]} 56. Bd5 {[%emt 0:00:44]} Rf2 {[%emt 0:00:20]} 57. Ke5 {[%emt 0:01:33]} Re2+ {[%emt 0:00:41]} 58. Kf5 {[%emt 0:00:51]} Rf2+ {[%emt 0:00:18]} 59. Ke5 {[%emt 0:00:07]} Kd7 {[%emt 0:00:51]} 60. Bf3 {[%emt 0:02:35]} Rxf3 {[%emt 0:01:44]} 61. gxf3 {[%emt 0:00:05]} Kc6 {[%emt 0:00:07]} 62. Kf5 {[%emt 0:02:12]} Kd5 {[%emt 0:00:45]} 63. h4 {[%emt 0:00:30]} gxh4 64. Kg4 Ke5 {[%emt 0:01:01]} 65. Kxh4 {[%emt 0:00:25]} Kxf6 {[%emt 0:00:36]} 66. Kh5 {[%emt 0:00:50]} Kg7 {[%emt 0:00:35]} 67. f4 {[%emt 0:00:07]} Kh7 {[%emt 0:00:44]} 68. Kh4 {[%emt 0:00:50]} Kg6 {[%emt 0:00:14]} 69. Kg4 {[%emt 0:00:04]} h5+ {[%emt 0:00:35]} 70. Kh4 {[%emt 0:00:50]} Kf5 {[%emt 0:00:08]} 71. Kg3 {[%emt 0:00:07]} h4+ {[%emt 0:00:46]} 72. Kf3 {[%emt 0:00:26]} f6 {[%emt 0:00:37]} 73. Kg2 {[%emt 0:01:00]} Kxf4 {[%emt 0:00:04]} 74. Kh3 {[%emt 0:00:09]} Kg5 {[%emt 0:00:20]} 0-1

[Event "WYCC 2018 G16"]
[Site "Halkidiki"]
[Date "2018.10.27"]
[Round "8"]
[White "Pecorini, Angie"]
[Black "Booysen, Tineke"]
[Result "1/2-1/2"]
[ECO "D31"]
[WhiteElo "1847"]
[BlackElo "1173"]
[Annotator "NA"]
[PlyCount "110"]
[EventDate "2018.10.20"]
[EventType "swiss"]
[EventCountry "GRE"]
[SourceTitle "playchess.com"]
[Source "ChessBase"]
[SourceQuality "1"]
[TimeControl "40/5400+30:1800+30"]

1. d4 {[%emt 0:00:00]} d5 {[%emt 0:00:00]} 2. c4 {[%emt 0:00:00]} e6 {[%emt 0:00:18]} 3. Nc3 {[%emt 0:00:03]} c6 {[%emt 0:01:56]} 4. cxd5 {[%emt 0:00:04]} exd5 {[%emt 0:00:29]} 5. Nf3 {[%emt 0:00:15]} Nf6 {[%emt 0:07:42]} 6. Bg5 {[%emt 0:00:09]} Bf5 {[%emt 0:05:23]} 7. e3 {[%emt 0:01:39]} Be7 {[%emt 0:09:41]} 8. Bd3 {[%emt 0:00:32]} Bxd3 {[%emt 0:04:17]} 9. Qxd3 {[%emt 0:00:08]} O-O {[%emt 0:04:01]} 10. Bxf6 {[%emt 0:03:05]} Bxf6 {[%emt 0:00:18]} 11. b4 {[%emt 0:02:13]} Nd7 {[%emt 0:10:03]} 12. O-O {[%emt 0:00:14]} Be7 {[%emt 0:05:09]} 13. b5 {[%emt 0:02:20]} Nf6 {[%emt 0:03:53]} 14. Rfc1 {[%emt 0:08:49]} Rc8 {[%emt 0:07:29]} 15. bxc6 {[%emt 0:06:47]} bxc6 {[%emt 0:01:15]} 16. Na4 {[%emt 0:02:59]} Ne4 {[%emt 0:05:01]} 17. Nd2 {[%emt 0:16:01]} f5 {[%emt 0:09:49]} 18. f3 {[%emt 0:00:37]} Nxd2 {[%emt 0:01:03]} 19. Qxd2 {[%emt 0:00:10]} Re8 {[%emt 0:05:52]} 20. Nc5 {[%emt 0:07:07]} Bxc5 {[%emt 0:04:33]} 21. Rxc5 {[%emt 0:00:07]} Qg5 {[%emt 0:01:15]} 22. Re1 {[%emt 0:08:54]} Re6 {[%emt 0:03:26]} 23. Qc1 {[%emt 0:05:32]} Qh6 {[%emt 0:01:27]} 24. Rxd5 {[%emt 0:11:41]} Rce8 {[%emt 0:03:00]} 25. Re5 {[%emt 0:14:44]} Rxe5 {[%emt 0:00:22]} 26. dxe5 {[%emt 0:00:05]} Rxe5 {[%emt 0:00:03]} 27. f4 {[%emt 0:00:39]} Re8 {[%emt 0:01:33]} 28. Qa3 {[%emt 0:01:26]} Qh4 {[%emt 0:01:30]} 29. Qc3 {[%emt 0:06:39]} Re6 {[%emt 0:02:15]} 30. g3 {[%emt 0:00:53]} Qe7 {[%emt 0:00:41]} 31. Qb3 {[%emt 0:00:20]} Kf8 {[%emt 0:00:45]} 32. Qd3 {[%emt 0:00:48]} Qf7 {[%emt 0:00:41]} 33. Rb1 {[%emt 0:00:35]} Re8 {[%emt 0:00:37]} 34. Rb2 {[%emt 0:00:48]} Qe6 {[%emt 0:00:27]} 35. Kf2 {[%emt 0:00:16]} Qd5 {[%emt 0:00:37]} 36. Qa3+ {[%emt 0:00:20]} Kg8 {[%emt 0:00:08]} 37. Qb3 {[%emt 0:00:56]} Qxb3 {[%emt 0:00:13]} 38. Rxb3 {[%emt 0:00:09]} Re7 {[%emt 0:00:23]} 39. Rc3 {[%emt 0:00:29]} Rc7 {[%emt 0:00:19]} 40. h3 {[%emt 0:00:00]} Kf7 {[%emt 0:00:00]} 41. g4 {[%emt 0:02:16]} fxg4 {[%emt 0:06:09]} 42. hxg4 {[%emt 0:00:07]} c5 {[%emt 0:01:01]} 43. Kf3 {[%emt 0:00:41]} g6 {[%emt 0:01:56]} 44. Ke4 {[%emt 0:06:35]} Ke6 {[%emt 0:02:38]} 45. Rc1 {[%emt 0:06:29]} Rc6 {[%emt 0:08:27]} 46. f5+ {[%emt 0:09:52]} gxf5+ {[%emt 0:00:55]} 47. gxf5+ {[%emt 0:00:06]} Kf6 {[%emt 0:01:06]} 48. Rh1 {[%emt 0:00:28]} Kg7 {[%emt 0:01:35]} 49. Kd5 {[%emt 0:00:49]} Rc8 {[%emt 0:00:47]} 50. e4 {[%emt 0:07:42]} c4 {[%emt 0:00:46]} 51. Ke6 {[%emt 0:01:13]} Re8+ {[%emt 0:00:44]} 52. Kd5 {[%emt 0:00:07]} Rc8 {[%emt 0:00:11]} 53. Ke6 {[%emt 0:00:14]} Re8+ {[%emt 0:00:10]} 54. Kd5 {[%emt 0:00:15]} Rc8 {[%emt 0:00:12]} 55. Ke6 {[%emt 0:00:23]} Re8+ {[%emt 0:00:08]} 1/2-1/2

[Event "WYCC 2018 G16"]
[Site "Halkidiki"]
[Date "2018.10.27"]
[Round "8"]
[White "Puppi Lazo, Stephanie Beatriz"]
[Black "Bogdanic, Katarina"]
[Result "1-0"]
[ECO "B40"]
[WhiteElo "1847"]
[BlackElo "2014"]
[Annotator "NA"]
[PlyCount "77"]
[EventDate "2018.10.20"]
[EventType "swiss"]
[EventCountry "GRE"]
[SourceTitle "playchess.com"]
[Source "ChessBase"]
[SourceQuality "1"]
[TimeControl "40/5400+30:1800+30"]

1. e4 {[%emt 0:00:00]} c5 {[%emt 0:00:00]} 2. Nf3 {[%emt 0:00:00]} e6 {[%emt 0:00:00]} 3. Nc3 {[%emt 0:00:00]} a6 {[%emt 0:00:00]} 4. Be2 {[%emt 0:00:00]} b5 {[%emt 0:00:05]} 5. d4 {[%emt 0:00:06]} cxd4 {[%emt 0:00:28]} 6. Nxd4 {[%emt 0:00:50]} Bb7 {[%emt 0:01:34]} 7. f3 {[%emt 0:02:29]} Qc7 {[%emt 0:02:27]} 8. Be3 {[%emt 0:02:16]} Nf6 {[%emt 0:05:30]} 9. Qd2 {[%emt 0:03:25]} Nc6 {[%emt 0:11:08]} 10. O-O {[%emt 0:04:29]} Be7 {[%emt 0:06:05]} 11. Rad1 {[%emt 0:02:39]} O-O {[%emt 0:00:55]} 12. Kh1 {[%emt 0:01:29]} Rac8 {[%emt 0:02:24]} 13. Nxc6 {[%emt 0:16:03]} Bxc6 {[%emt 0:04:31]} 14. Bd3 {[%emt 0:03:14]} d5 {[%emt 0:08:41]} 15. exd5 {[%emt 0:06:26]} Nxd5 {[%emt 0:01:25]} 16. Nxd5 {[%emt 0:01:13]} Bxd5 {[%emt 0:00:19]} 17. a3 {[%emt 0:01:23]} Rfd8 {[%emt 0:00:29]} 18. Qf2 {[%emt 0:05:05]} Qc6 {[%emt 0:06:05]} 19. Rfe1 {[%emt 0:07:09]} Bf6 {[%emt 0:03:43]} 20. Bc1 {[%emt 0:07:17]} Qc5 {[%emt 0:06:34]} 21. Qg3 {[%emt 0:03:11]} Bc4 {[%emt 0:04:58]} 22. Be4 {[%emt 0:03:36]} Bd4 {[%emt 0:06:17]} 23. Qh3 {[%emt 0:17:44]} f5 {[%emt 0:01:33]} 24. Bd3 {[%emt 0:01:45]} Bxd3 {[%emt 0:06:47]} 25. cxd3 {[%emt 0:00:17]} Qc2 {[%emt 0:00:37]} 26. Bg5 {[%emt 0:00:37]} Re8 {[%emt 0:01:47]} 27. Rd2 {[%emt 0:07:38]} Qc1 {[%emt 0:04:06]} 28. Qg3 {[%emt 0:01:23]} Bxb2 {[%emt 0:05:59]} 29. Rde2 {[%emt 0:02:10]} Qc3 {[%emt 0:00:08]} 30. Qf2 {[%emt 0:00:33]} Bxa3 {[%emt 0:00:41]} 31. Rxe6 {[%emt 0:00:22]} Rxe6 {[%emt 0:00:06]} 32. Rxe6 {[%emt 0:00:04]} Qxd3 {[%emt 0:00:47]} 33. Rxa6 {[%emt 0:00:34]} Bc1 {[%emt 0:00:28]} 34. f4 {[%emt 0:00:52]} Be3 {[%emt 0:00:19]} 35. Qa2+ {[%emt 0:00:06]} Kf8 {[%emt 0:01:08]} 36. Be7+ {[%emt 0:00:51]} Ke8 {[%emt 0:04:40]} 37. Qg8+ {[%emt 0:00:04]} Kxe7 {[%emt 0:01:32]} 38. Re6+ {[%emt 0:00:28]} Kd7 {[%emt 0:00:17]} 39. Qf7+ {[%emt 0:00:02]} 1-0

[Event "WYCC 2018 G16"]
[Site "Halkidiki"]
[Date "2018.10.27"]
[Round "8"]
[White "Zhang, Cindy"]
[Black "Aubert, Estee"]
[Result "1-0"]
[ECO "D02"]
[WhiteElo "1790"]
[BlackElo "2064"]
[Annotator "NA"]
[PlyCount "77"]
[EventDate "2018.10.20"]
[EventType "swiss"]
[EventCountry "GRE"]
[SourceTitle "playchess.com"]
[Source "ChessBase"]
[SourceQuality "1"]
[TimeControl "40/5400+30:1800+30"]

1. d4 {[%emt 0:00:00]} Nf6 {[%emt 0:00:00]} 2. Nf3 {[%emt 0:00:00]} d5 {[%emt 0:00:00]} 3. Bf4 {[%emt 0:00:00]} c5 {[%emt 0:01:12]} 4. e3 {[%emt 0:00:24]} Nc6 {[%emt 0:00:21]} 5. Nbd2 {[%emt 0:00:50]} cxd4 {[%emt 0:00:45]} 6. exd4 {[%emt 0:02:30]} Bf5 {[%emt 0:00:43]} 7. c3 {[%emt 0:02:57]} e6 {[%emt 0:00:48]} 8. Be2 {[%emt 0:10:41]} Bd6 {[%emt 0:03:07]} 9. Bg3 {[%emt 0:03:33]} h6 {[%emt 0:07:15]} 10. O-O {[%emt 0:05:51]} Bxg3 {[%emt 0:00:43]} 11. hxg3 {[%emt 0:00:35]} O-O {[%emt 0:00:54]} 12. Re1 {[%emt 0:01:25]} Rb8 {[%emt 0:06:21]} 13. a4 {[%emt 0:10:04]} a6 {[%emt 0:01:37]} 14. Nb3 {[%emt 0:09:58]} b5 {[%emt 0:07:59]} 15. Nc5 {[%emt 0:03:03]} bxa4 {[%emt 0:06:13]} 16. Qxa4 {[%emt 0:02:43]} Qd6 {[%emt 0:07:27]} 17. b4 {[%emt 0:03:38]} Ne4 {[%emt 0:08:07]} 18. Rec1 {[%emt 0:05:21]} Nxc5 {[%emt 0:09:26]} 19. dxc5 {[%emt 0:02:09]} Qc7 {[%emt 0:00:11]} 20. Qxa6 {[%emt 0:04:59]} e5 {[%emt 0:09:52]} 21. b5 {[%emt 0:10:21]} Ne7 {[%emt 0:05:07]} 22. Qa3 {[%emt 0:01:47]} Rfc8 {[%emt 0:03:11]} 23. c6 {[%emt 0:00:45]} Be6 {[%emt 0:02:36]} 24. Qc5 {[%emt 0:02:04]} Nf5 {[%emt 0:03:53]} 25. Ra7 {[%emt 0:01:49]} Qd6 {[%emt 0:00:28]} 26. Qa3 {[%emt 0:03:52]} Qxa3 {[%emt 0:00:46]} 27. Rxa3 {[%emt 0:00:06]} Nd6 {[%emt 0:00:15]} 28. Ra5 {[%emt 0:03:46]} f6 {[%emt 0:00:26]} 29. Nd2 {[%emt 0:01:03]} Rb6 {[%emt 0:02:57]} 30. Rca1 {[%emt 0:04:23]} Rcb8 {[%emt 0:02:12]} 31. Ra8 {[%emt 0:00:44]} Kh7 {[%emt 0:01:50]} 32. c4 {[%emt 0:03:57]} dxc4 {[%emt 0:00:57]} 33. Nxc4 {[%emt 0:00:15]} Bxc4 {[%emt 0:03:00]} 34. Bxc4 {[%emt 0:00:34]} Nxc4 {[%emt 0:01:19]} 35. c7 {[%emt 0:00:39]} Rxa8 {[%emt 0:00:19]} 36. Rxa8 {[%emt 0:00:02]} Nd6 {[%emt 0:00:07]} 37. Rb8 {[%emt 0:00:34]} Nc8 {[%emt 0:01:31]} 38. Rxc8 {[%emt 0:00:00]} Rxb5 {[%emt 0:00:04]} 39. Rb8 {[%emt 0:00:00]} 1-0

[Event "WYCC 2018 G16"]
[Site "Halkidiki"]
[Date "2018.10.27"]
[Round "8"]
[White "Leonova, Ameliya"]
[Black "Kobald, Jacqueline"]
[Result "1-0"]
[ECO "B44"]
[WhiteElo "1736"]
[BlackElo "1911"]
[Annotator "NA"]
[PlyCount "115"]
[EventDate "2018.10.20"]
[EventType "swiss"]
[EventCountry "GRE"]
[SourceTitle "playchess.com"]
[Source "ChessBase"]
[SourceQuality "1"]
[TimeControl "40/5400+30:1800+30"]

1. e4 {[%emt 0:00:00]} c5 {[%emt 0:00:00]} 2. Nf3 {[%emt 0:00:00]} e6 {[%emt 0:00:00]} 3. d4 {[%emt 0:00:00]} cxd4 {[%emt 0:00:00]} 4. Nxd4 {[%emt 0:00:00]} Nc6 {[%emt 0:00:00]} 5. Nb5 {[%emt 0:00:01]} d6 {[%emt 0:00:33]} 6. c4 {[%emt 0:00:11]} Nf6 {[%emt 0:03:18]} 7. N1c3 {[%emt 0:00:14]} a6 {[%emt 0:00:04]} 8. Na3 {[%emt 0:00:03]} Be7 {[%emt 0:00:37]} 9. Be2 {[%emt 0:00:14]} O-O {[%emt 0:00:29]} 10. O-O {[%emt 0:00:09]} b6 {[%emt 0:01:36]} 11. Be3 {[%emt 0:00:16]} Bb7 {[%emt 0:01:03]} 12. f3 {[%emt 0:00:52]} Qc7 {[%emt 0:03:07]} 13. Na4 {[%emt 0:01:57]} Nd7 {[%emt 0:00:42]} 14. Qd2 {[%emt 0:06:19]} Rfe8 {[%emt 0:05:30]} 15. Rac1 {[%emt 0:00:26]} Rad8 {[%emt 0:03:03]} 16. Nc3 {[%emt 0:01:18]} Nf6 {[%emt 0:05:00]} 17. Nd5 {[%emt 0:02:34]} exd5 {[%emt 0:06:17]} 18. cxd5 {[%emt 0:00:07]} Ra8 {[%emt 0:14:00]} 19. dxc6 {[%emt 0:00:15]} Bxc6 {[%emt 0:03:20]} 20. Nc2 {[%emt 0:03:01]} Qb7 {[%emt 0:03:23]} 21. Nb4 {[%emt 0:03:44]} Rec8 {[%emt 0:09:15]} 22. Nxc6 {[%emt 0:00:52]} Rxc6 {[%emt 0:00:08]} 23. Rxc6 {[%emt 0:00:11]} Qxc6 {[%emt 0:00:07]} 24. Rc1 {[%emt 0:00:11]} Qb7 {[%emt 0:05:06]} 25. Qc2 {[%emt 0:04:55]} Kf8 {[%emt 0:08:06]} 26. a4 {[%emt 0:03:04]} b5 {[%emt 0:02:28]} 27. axb5 {[%emt 0:00:15]} axb5 {[%emt 0:00:09]} 28. Qc6 {[%emt 0:03:13]} Qxc6 {[%emt 0:03:04]} 29. Rxc6 {[%emt 0:00:05]} b4 {[%emt 0:05:41]} 30. Rc4 {[%emt 0:06:32]} d5 {[%emt 0:01:49]} 31. exd5 {[%emt 0:00:46]} Nxd5 {[%emt 0:00:31]} 32. Bc5 {[%emt 0:01:54]} Bxc5+ {[%emt 0:07:14]} 33. Rxc5 {[%emt 0:00:05]} Rd8 {[%emt 0:01:19]} 34. Kf2 {[%emt 0:01:17]} Nf4 {[%emt 0:00:40]} 35. Rc4 {[%emt 0:00:47]} Nxe2 {[%emt 0:02:22]} 36. Kxe2 {[%emt 0:00:09]} Rb8 {[%emt 0:00:28]} 37. Kd3 {[%emt 0:01:06]} Ke7 {[%emt 0:01:46]} 38. Kc2 {[%emt 0:00:22]} Ke6 {[%emt 0:01:20]} 39. Kb3 {[%emt 0:00:38]} Rd8 {[%emt 0:00:58]} 40. Re4+ {[%emt 0:00:00]} Kf5 {[%emt 0:00:00]} 41. Rg4 {[%emt 0:03:55]} g6 {[%emt 0:07:33]} 42. Kxb4 {[%emt 0:02:33]} Rd2 {[%emt 0:00:23]} 43. b3 {[%emt 0:00:48]} h5 {[%emt 0:00:25]} 44. Rg3 {[%emt 0:00:33]} h4 {[%emt 0:12:57]} 45. Rg4 {[%emt 0:01:21]} h3 {[%emt 0:00:02]} 46. gxh3 {[%emt 0:00:14]} Rxh2 {[%emt 0:00:06]} 47. Rc4 {[%emt 0:00:42]} Rxh3 {[%emt 0:00:20]} 48. f4 {[%emt 0:00:37]} Rh4 {[%emt 0:01:45]} 49. Kc5 {[%emt 0:01:28]} g5 {[%emt 0:06:43]} 50. fxg5 {[%emt 0:00:28]} Rxc4+ {[%emt 0:03:40]} 51. Kxc4 {[%emt 0:00:22]} Kxg5 {[%emt 0:00:20]} 52. b4 {[%emt 0:00:23]} Kf5 {[%emt 0:02:21]} 53. Kd5 {[%emt 0:00:43]} Kg4 {[%emt 0:02:42]} 54. b5 {[%emt 0:00:10]} f5 {[%emt 0:00:05]} 55. b6 {[%emt 0:00:04]} f4 {[%emt 0:00:07]} 56. b7 {[%emt 0:00:02]} f3 {[%emt 0:00:09]} 57. b8=Q {[%emt 0:00:04]} Kh3 {[%emt 0:00:29]} 58. Qf4 {[%emt 0:01:21]} 1-0

[Event "WYCC 2018 G16"]
[Site "Halkidiki"]
[Date "2018.10.27"]
[Round "8"]
[White "Sanabria Taskila, Jenny Maria"]
[Black "Serikbay, Assel"]
[Result "0-1"]
[ECO "B41"]
[WhiteElo "1728"]
[BlackElo "2166"]
[Annotator "NA"]
[PlyCount "82"]
[EventDate "2018.10.20"]
[EventType "swiss"]
[EventCountry "GRE"]
[SourceTitle "playchess.com"]
[Source "ChessBase"]
[SourceQuality "1"]
[TimeControl "40/5400+30:1800+30"]

1. e4 {[%emt 0:00:00]} c5 {[%emt 0:00:00]} 2. Nf3 {[%emt 0:00:00]} e6 {[%emt 0:00:00]} 3. d4 {[%emt 0:00:00]} cxd4 {[%emt 0:00:00]} 4. Nxd4 {[%emt 0:00:00]} a6 {[%emt 0:00:00]} 5. c4 {[%emt 0:00:07]} Nf6 {[%emt 0:00:14]} 6. Nc3 {[%emt 0:00:09]} Qc7 {[%emt 0:00:19]} 7. Be2 {[%emt 0:00:27]} b6 {[%emt 0:00:48]} 8. O-O {[%emt 0:03:13]} Bb7 {[%emt 0:00:14]} 9. Qd3 {[%emt 0:00:23]} d6 {[%emt 0:00:34]} 10. f4 {[%emt 0:02:15]} Nbd7 {[%emt 0:02:09]} 11. b4 {[%emt 0:02:51]} Rc8 {[%emt 0:03:51]} 12. Be3 {[%emt 0:05:23]} Be7 {[%emt 0:26:49]} 13. Rac1 {[%emt 0:01:24]} O-O {[%emt 0:00:11]} 14. a3 {[%emt 0:04:30]} Qb8 {[%emt 0:01:23]} 15. g4 {[%emt 0:08:52]} Rfd8 {[%emt 0:10:40]} 16. g5 {[%emt 0:07:07]} Ne8 {[%emt 0:00:08]} 17. Bg4 {[%emt 0:11:12]} Nc7 {[%emt 0:18:20]} 18. Qe2 {[%emt 0:03:54]} Bf8 {[%emt 0:04:30]} 19. f5 {[%emt 0:15:22]} Re8 {[%emt 0:02:33]} 20. Rf3 {[%emt 0:15:24]} Ne5 {[%emt 0:07:45]} 21. Rh3 {[%emt 0:00:49]} g6 {[%emt 0:04:15]} 22. Bf4 {[%emt 0:05:43]} Nxg4 {[%emt 0:01:27]} 23. Qxg4 {[%emt 0:00:06]} Bg7 {[%emt 0:10:19]} 24. Nce2 {[%emt 0:07:06]} exf5 {[%emt 0:02:57]} 25. exf5 {[%emt 0:00:16]} Ba8 {[%emt 0:01:32]} 26. f6 {[%emt 0:05:29]} Bf8 {[%emt 0:00:22]} 27. Nf5 {[%emt 0:00:47]} h5 {[%emt 0:01:28]} 28. gxh6 {[%emt 0:00:20]} Kh7 {[%emt 0:00:19]} 29. Ne3 {[%emt 0:00:41]} Qb7 {[%emt 0:00:34]} 30. Qd7 {[%emt 0:00:27]} Ne6 {[%emt 0:00:25]} 31. Qxb7 {[%emt 0:00:26]} Bxb7 {[%emt 0:00:00]} 32. Ng4 {[%emt 0:00:33]} Nxf4 {[%emt 0:00:44]} 33. Nxf4 {[%emt 0:00:02]} Re4 {[%emt 0:00:10]} 34. Rf1 {[%emt 0:01:00]} Rcxc4 {[%emt 0:00:25]} 35. Rhf3 {[%emt 0:00:30]} g5 {[%emt 0:00:37]} 36. Ne3 {[%emt 0:00:25]} Rxf4 {[%emt 0:00:15]} 37. Nxc4 {[%emt 0:00:37]} Bxf3 {[%emt 0:00:50]} 38. Nxb6 {[%emt 0:00:22]} Bxh6 {[%emt 0:00:15]} 39. Nd7 {[%emt 0:00:24]} g4 {[%emt 0:00:16]} 40. Re1 {[%emt 0:00:00]} Rd4 {[%emt 0:00:00]} 41. Re7 {[%emt 0:01:00]} Kg6 {[%emt 0:01:24]} 0-1